Cogmind - Beta 15 @@@ ROGUE MODE // 2025.06.20 @ 03:03:58 Player: Mogwok Wargfriend Result: Destroyed by Autobeam Turret with Autobeam Performance ------------- Evolutions (0) 0 Regions Visited (2) 400 Robots Destroyed (29) 145 Value Destroyed (519) 519 Prototype IDs (0) 0 Alien Tech Used (0) 0 Bonus (0) 0 TOTAL SCORE: 1064 Bonus ------- None Cogmind --------- Core Integrity 0/250 Matter 300/300 Energy 125/125 System Corruption 2% Temperature Cool (12) Movement Walking (190) Ox1 Location -10/Subcaves Parts ------- > --- POWER (1) -------- Light Ion Engine > --- PROPULSION (2) --- Aluminum Leg > --- UTILITY (2) ------ Heat Sink Medium Storage Unit > --- WEAPON (2) ------- Beam Cannon Grenade Launcher > --- INVENTORY (10) --- Ion Engine Ion Engine Light Treads Light Treads Light Treads Heat Sink Medium Laser Medium Laser Medium Laser Peak State ------------ > --- POWER ------------ Light Ion Engine > --- PROPULSION ------- Aluminum Leg Aluminum Leg > --- UTILITY ---------- Heat Sink Medium Storage Unit > --- WEAPON ----------- Medium Laser Light Assault Rifle > --- INVENTORY -------- Ion Engine Light Treads Light Treads Light Treads Aluminum Leg Aluminum Leg Heat Sink Medium Laser Medium Laser Grenade Launcher [Rating: 8] Favorites ----------- Power Light Ion Engine Engine Light Ion Engine Propulsion Aluminum Leg Leg Aluminum Leg Wheel Compact Wheel Utility Small Storage Unit Device Heat Sink Storage Small Storage Unit Processor Targeting Computer Weapon Medium Laser Energy Gun Medium Laser Energy Cannon Beam Cannon Ballistic Gun Light Assault Rifle Launcher Grenade Launcher Build | -11 -10 -10 ------- Run | Yrd Mat Sub Slots Evolved . | . . . Power . | . . . Propulsion . | . . . Utility . | . . . Weapon . | . . . Parts Attached 22 | 7 13 2 Power 3 | 1 2 . Engine 3 | 1 2 . Core . | . . . Reactor . | . . . Propulsion 7 | 2 4 1 Treads . | . . . Leg 5 | . 4 1 Wheel 2 | 2 . . Hover . | . . . Flight . | . . . Utility 6 | 2 4 . Device 3 | 1 2 . Storage 2 | 1 1 . Processor 1 | . 1 . Hackware . | . . . Protection . | . . . Artifact . | . . . Weapon 6 | 2 3 1 Energy Gun 3 | 2 1 . Energy Cannon 1 | . 1 . Ballistic Gun 1 | . 1 . Ballistic Cannon . | . . . Launcher 1 | . . 1 Special Weapon . | . . . Impact Weapon . | . . . Slashing Weapon . | . . . Piercing Weapon . | . . . Special Melee Weapon . | . . . Unidentified Prototypes . | . . . Parts Lost 5 | . 3 2 Power 1 | . 1 . Propulsion 2 | . . 2 Utility 1 | . 1 . Weapon 1 | . 1 . Highest Loss Streak 2 | . 2 2 To Critical Strikes . | . . . Average Backups 8 | 4 8 9 Power 1 | . 1 2 Propulsion 3 | 2 3 3 Utility . | . . 1 Weapon 2 | 1 3 3 Tool/Special . | . . . Unused Backups 11 | . 3 8 Power 3 | . 1 2 Propulsion 4 | . 1 3 Utility 1 | . . 1 Weapon 3 | . 1 2 Tool/Special . | . . . Average Slot Usage (%) 98 | . 98 98 Engine 13 | . 13 14 Leg 23 | . 23 26 Wheel 4 | . 4 . Device 10 | . 9 14 Storage 14 | . 14 14 Processor 2 | . 2 . Energy Gun 16 | . 16 12 Energy Cannon 2 | . 1 14 Ballistic Gun 8 | . 9 . Peak Build Rating 8 | 7 8 8 Average Rating 7 | 5 7 7 On Entrance 5 | . 7 8 Naked Turns . | . . . Heaviest Build 20 | 15 19 20 Greatest Support 32 | 32 32 20 Greatest Overweight (x) 1 | 1 . 1 Average Overweight (x) . | . . . Largest Inventory Capacity 10 | 8 10 10 Average Capacity 8 | 7 8 10 Most Carried 10 | 8 10 10 Average Carried 8 | 4 8 9 Final Capacity 10 | 8 10 10 Final Carried 10 | 8 10 9 Class Distribution -------------------- 100% | Mutant Dominant Class ---------------- Mutant | -10/Materials Mutant | -10/Subcaves Resources | -11 -10 -10 ----------- Run | Yrd Mat Sub Matter Collected 480 | 270 181 29 Remotely . | . . . Salvage Created 955 | 133 772 50 Parts 54 | 7 41 6 Haulers Intercepted 1 | . 1 . Recyclers Shooed 2 | 1 1 . Parts Field Recycled . | . . . Retrieved Matter . | . . . Parts Self-Destructed 9 | . . 9 Prevented . | . . . Kills | -11 -10 -10 ------- Run | Yrd Mat Sub Combat Hostiles Destroyed 17 | . 14 3 Guns 16 | . 14 2 Cannons 1 | . . 1 Classes Destroyed 8 | 2 6 . Builder 1 | . 1 . Tunneler 3 | 3 . . Hauler 1 | . 1 . Recycler 3 | 1 2 . Operator 1 | . 1 . Watcher 3 | . 3 . Swarmer 8 | . 5 3 Grunt 9 | . 9 . Best Kill Streak 8 | 4 8 3 Combat Bots Only 3 | . 3 3 Max Kills in Single Turn 2 | 2 1 1 Gunslinging . | . . . Exploded . | . . . Melee . | . . . Uniques/NPCs Destroyed . | . . . Combat | -11 -10 -10 -------- Run | Yrd Mat Sub Hostile Shots Fired 198 | . 99 99 Missed 83 | . 35 48 Hits 115 | . 64 51 Projectile 115 | . 64 51 Critical Strikes 1 | . . 1 Damage Taken 1064 | . 709 355 Core 258 | . 182 76 Absorbed by Shields . | . . . Core Remaining (%) 100 | 100 . . Volleys Fired 81 | 7 64 10 Largest 2 | 2 2 2 Hottest 110 | 90 110 110 Shots Fired 158 | 14 129 15 Gun 147 | 14 128 5 Cannon 11 | . 1 10 Launcher . | . . . Special . | . . . Kinetic 45 | . 45 . Thermal 88 | 7 66 15 Explosive . | . . . Electromagnetic 25 | 7 18 . Robot Hit Streak 9 | 4 9 2 Robot Miss Streak 4 | 1 4 3 Penetration Max . | . . . Secondary Targets 2 | . 2 . Max Gunslinging Chain 1 | . 1 . Shots Hit Robots 96 | 8 82 6 Core Hits 43 | 4 36 3 Critical Kills . | . . . Critical Parts Destroyed . | . . . Critical Strikes 5 | . 5 . Burn 5 | . 5 . Melee Attacks . | . . . Impact . | . . . Slashing . | . . . Piercing . | . . . Sneak Attacks . | . . . Combat Hostiles . | . . . Follow-up Attacks . | . . . Damage Inflicted 1305 | 114 1075 116 Guns 1125 | 114 984 27 Cannons 107 | . 18 89 Explosions 73 | . 73 . Melee . | . . . Ramming . | . . . Kinetic 251 | . 251 . Thermal 812 | 49 647 116 Explosive . | . . . Electromagnetic 242 | 65 177 . Impact . | . . . Slashing . | . . . Piercing . | . . . Highest Corruption 2 | . 2 2 Average Corruption 2 | . 2 2 Corruption Purged . | . . . Corruption Blocked . | . . . Effects 12 | . 11 1 Message Errors 5 | . 4 1 Matter Fused 3 | . 3 . Energy Discharges 2 | . 2 . Data Loss (major) 1 | . 1 . Misfires 1 | . 1 . Overload Shots . | . . . Overflow Damage 2 | . 2 . Projectiles . | . . . Explosions 2 | . 2 . Melee . | . . . Knockbacks . | . . . Impact . | . . . Kinetic . | . . . Secondary . | . . . Self-Inflicted Damage 36 | . 36 . Shots 1 | . 1 . Rammed . | . . . Targets Rammed . | . . . Kicked . | . . . Crushed . | . . . Highest Temperature 453 | 120 453 . Average Temperature 103 | 45 111 . Received Heat Transfer 447 | . 213 234 Effects 1 | . 1 . Shutdowns 1 | . 1 . Siege Activations . | . . . Martial Activations . | . . . Shielding Activations . | . . . Robots Disrupted . | . . . Combat Hostiles . | . . . Robots Corrupted . | . . . Combat Hostiles . | . . . Parts Fried . | . . . Impact Corruptions . | . . . Robots Melted . | . . . Combat Hostiles . | . . . Parts Melted 4 | . 4 . Heat Transferred 2518 | 148 2111 259 Parts Sabotaged . | . . . Parts Stolen . | . . . Parts Stripped . | . . . Power Chain Reactions 1 | . 1 . Alert | -11 -10 -10 ------- Run | Yrd Mat Sub Maximum Alert Level . | . . . Low Security (%) 100 | 100 100 . Level 1 . | . . . Level 2 . | . . . Level 3 . | . . . Level 4 . | . . . Level 5 . | . . . High Security . | . . . Max Security . | . . . Peak Influence 105 | 20 105 . Initial . | . . . Average 37 | 3 41 . Influence Increases 599 | 20 429 150 Destroy 0b10 Robot/C 340 | . 280 60 Destroy 0b10 Robot/NC 60 | 20 40 . Destroy Leader 58 | . 58 . Successful Hack 18 | . 18 . Disable Machine 15 | . 15 . Destroy Structure 3 | . 3 . Lose Combat Pursuer 105 | . 15 90 Influence Decreases 489 | 20 407 62 Entered New Map 11 | . . 11 Time Decay 428 | 20 377 31 Lost Part 50 | . 30 20 Squads Dispatched 3 | . 3 . Investigation 2 | . 2 . Extermination . | . . . Reinforcement 1 | . 1 . Assault . | . . . Garrison . | . . . Intercept . | . . . Searches Triggered . | . . . Construction Impeded . | . . . Haulers Reinforced . | . . . Active Scanning Responses . | . . . Cargo Convoy Interrupts . | . . . Stealth | -11 -10 -10 --------- Run | Yrd Mat Sub Distress Signals 2 | . 2 . Communications Jammed . | . . . Distress Signals . | . . . Times Spotted 30 | . 19 11 Peak Tracking Total 6 | . 6 6 Tactical Retreats 4 | . 1 3 Traps | -11 -10 -10 ------- Run | Yrd Mat Sub Traps Triggered 4 | . 4 . Indirectly . | . . . Trap Hack Attempts . | . . . Triggered . | . . . Disarmed . | . . . Reprogrammed . | . . . Reused . | . . . Traps Extracted . | . . . Installed . | . . . Triggered . | . . . Machines | -11 -10 -10 ---------- Run | Yrd Mat Sub Machines Disabled 1 | . 1 . Max in Single Turn 1 | . 1 . Machines Repaired . | . . . Machines Dismantled . | . . . Machines Sabotaged . | . . . Overloaded Fab Kills . | . . . Hacking | -11 -10 -10 --------- Run | Yrd Mat Sub Machines Accessed 6 | . 6 . Terminals 5 | . 5 . Fabricators . | . . . Repair Stations . | . . . Recycling Units 1 | . 1 . Scanalyzers . | . . . Garrison Access . | . . . Total Hacks 18 | . 18 . Successful 7 | . 7 . Failed 11 | . 11 . Catastrophic 1 | . 1 . Database Lockouts . | . . . Manual 18 | . 18 . Terminals 16 | . 16 . Fabricators . | . . . Repair Stations . | . . . Recycling Units 2 | . 2 . Scanalyzers . | . . . Garrison Access . | . . . Terminal Hacks 4 | . 4 . Robot Analysis 3 | . 3 . Terminal Index 1 | . 1 . Fabricator Hacks . | . . . Repair Station Hacks . | . . . Recycling Unit Hacks 1 | . 1 . Report Inventory 1 | . 1 . Scanalyzer . | . . . Garrison Access Hacks . | . . . Unauthorized Hacks 2 | . 2 . Terminals 1 | . 1 . Operators 1 | . 1 . Fabricators . | . . . Repair Stations . | . . . Recycling Units 1 | . 1 . Reject 1 | . 1 . Scanalyzers . | . . . Garrison Access . | . . . Data Cores Recovered . | . . . Used . | . . . Hacking Detections 5 | . 5 . Full Trace Events 1 | . 1 . Feedback Events . | . . . Feedback Blocked . | . . . Robot Schematics Acquired . | . . . Robots Built . | . . . Authchips . | . . . Time . | . . . Total Robot Build Rating . | . . . Part Schematics Acquired . | . . . Parts Built . | . . . Authchips . | . . . Time . | . . . Total Part Build Rating . | . . . Parts Repaired . | . . . Time . | . . . Parts Recycled . | . . . Recycled Matter . | . . . Retrieved Matter . | . . . Retrieved Components . | . . . Parts Scanalyzed . | . . . Part Schematics Acquired . | . . . Parts Damaged . | . . . Bothacking | -11 -10 -10 ------------ Run | Yrd Mat Sub Used RIF Installer . | . . . Robots Hacked . | . . . Non-combat . | . . . Combat . | . . . Robot Hacks Applied . | . . . Relay Couplers Released . | . . . Fabnet Peak Effective % . | . . . Robots Rewired . | . . . Allies Hacked . | . . . Hacks Repelled . | . . . Allies | -11 -10 -10 -------- Run | Yrd Mat Sub Total Allies . | . . . Largest Group . | . . . Highest-Rated Group . | . . . Highest-Rated Ally . | . . . Total Orders . | . . . Ally Attacks . | . . . Total Damage . | . . . Kills . | . . . Allies Corrupted . | . . . Allies Melted . | . . . Intel | -11 -10 -10 ------- Run | Yrd Mat Sub Active Infowar (turns) 161 | 12 149 . Structural 77 | . 77 . Seismic 84 | 12 72 . Robot Analysis Total 3 | . 3 . Derelict Logs Recovered 1 | . . 1 Drone Launches . | . . . Drone Recoveries . | . . . Exploration | -11 -10 -10 ------------- Run | Yrd Mat Sub Turns Passed 1333 | 124 1115 94 Spaces Moved 870 | 88 732 50 Core 7 | 7 . . Treads . | . . . Legs 670 | . 620 50 Wheels 193 | 81 112 . Hover . | . . . Flight . | . . . Fastest Speed 50 | 50 100 120 Average Speed 115 | 97 116 127 Slowest Speed 190 | 100 120 190 Overloaded Moves . | . . . Propulsion Burnouts . | . . . Robots Hopped . | . . . Potential Cave-ins . | . . . Cave-ins Triggered . | . . . Exploration Rate (%) 32 | 3 86 7 Regions Visited 2 Branch Regions 1 Pre-discovered Areas 1 | . . 1 Known Exits Taken . | . . . Unknown Exits Taken 2 | 1 1 . Scrap Searched . | . . . Spaces Dug . | . . . Terrain Destroyed 2 | . 2 . Melee . | . . . Projectile . | . . . AOE 2 | . 2 . Terrain Rammed . | . . . Walls Destroyed . | . . . Machines Disabled . | . . . Actions | -11 -10 -10 --------- Run | Yrd Mat Sub Total 1050 | 109 876 65 Wait 49 | . 46 3 Move 868 | 87 731 50 Hop . | . . . Pick Up 17 | 8 9 . Fast Attach 12 | 7 5 . Attach 5 | . 4 1 Detach 1 | . 1 . Swap 5 | . 4 1 Drop 12 | . 12 . Fire 81 | 7 64 10 Melee . | . . . Ram . | . . . Kick . | . . . Crush . | . . . Escape Stasis . | . . . Rewire . | . . . Trap . | . . . Miscellaneous . | . . . Route ------- -11/Scrapyard -10/Materials (discovered 5 exits: [*Mat x3] / [*Min] / [*Sub]) -10/Subcaves (discovered 1 exit: [*Rec]) History --------- Turn | Location | Event 25 | -11/Scrapyard | Discovered new exit (range 15) 125 | -11/Scrapyard | Entered Materials 336 | -10/Materials | Build established: Mutant 462 | -10/Materials | Discovered new exit (range 16) 670 | -10/Materials | Discovered new exit (range 5) 734 | -10/Materials | Discovered new exit (range 16) 755 | -10/Materials | Core integrity fell below 50% 973 | -10/Materials | Discovered new exit (range 16) 1232 | -10/Materials | Discovered new exit (range 8) 1240 | -10/Materials | Entered Subcaves 1241 | -10/Subcaves | Approached by a straggling Scientist 1249 | -10/Subcaves | Learned location of Zion (-6) 1297 | -10/Subcaves | Core integrity fell below 20% 1324 | -10/Subcaves | Discovered new exit (range 15) 1334 | -10/Subcaves | Destroyed by Autobeam Turret with Autobeam Last Messages --------------- KY-GL5(c): "I think it's somewhere south of here" 01291_ S-10 Pest destroyed. 01297_ Flight Unit fries itself beyond repair. 01297_ Lgt. Assault Rifle fries itself beyond repair. 01298_ S-10 Pest destroyed. 01301_ Acquired 9 matter. 01302_ Subatomizers dissect the Lgt. Ion Engine. 01304_ Z FIY#QWCKSLTRVZY VBUVJ 01306_ Lgt. Ion Engine fries itself beyond repair. 01310_ Flight Unit fries itself beyond repair. 01311_ Lgt. Assault Rifle fries itself beyond repair. 01313_ Aluminum Leg destroyed. 01317_ Acquired 10 matter. 01324_ EXIT=FOUND 01324_ Aluminum Leg destroyed. Map ----- +----------------------------------------------------+ | ??????????????????????????????????# ### #### | | ??????????????????????????????##### | | ?????????????????????????????## | | ????????????????????????????## | | ????????????????????????????# | | ????????????????????????????# | | ????????????????????????????# | | ????????????????????????????## ### | | ?????????????????????????????### ##??? | | ???????????????????????????????## ## ###??? | | ???????????????????????????????# ### ##?? | | ???????????????????????????????## ##?# #?? | | ???????????????????????????????# #??## ###?? | | ???????????????????????????????# #???# ##???? | | ??????????????????????????????## #???## #????? | | ?????????????????????????????## #????? #????? | | ?????????????????????????????# ###????? #????? | | ?????????????????????????????# #??##???####????? | | ??????????????####??????????## #### #???????????? | | ??????????????#""" ?????????# ### ##??????????? | | ??????????????#" ????????# ## #??????????? | | ??????????????#" #########%% #???????????? | | ?????????????##""t ##???????????? | | ?????????????#< c ###????????????? | | ???????????????"" #??????????????? | | ??????????????#" ### @ #### #??????????????? | | ???????????????? ??????# #? #?????????????? | | ???????????????????????## ### #????????????? | | ????????????????????????## #?## ???????????? | | ?????????????????????????# #??? ?????????? | | ????????????????????????? ??? ????????? | | ????????????????????????? ?? ???????? | | ????????????????????????? ? ???????? | | ????????????????????????? ???????? | | ????????????????????????? #### ????????? | | ????????????????????????? ###?????????????? | | ????????????????????????? # ##???????????????? | | ????????????????????????? # ##????????????????? | | ?????????????????????????#######?????????????????? | | ?????????????????????????????????????????????????? | | ?????????????????????????????????????????????????? | | ?????????????????????????????????????????????????? | | ?????????????????????????????????????????????????? | | ?????????????????????????????????????????????????? | | ?????????????????????????????????????????????????? | | ?????????????????????????????????????????????????? | | ?????????????????????????????????????????????????? | | ?????????????????????????????????????????????????? | | ?????????????????????????????????????????????????? | | ?????????????????????????????????????????????????? | +----------------------------------------------------+ Best States ------------- Heat Dissipation 35 Energy Generation 10 Energy Capacity 250 Matter Stores 300 Matter Capacity 300 Sight Range 16 Terrain Scan Density 10 Evasion (%) 55 Targeting Accuracy 5 Item Schematics ----------------- None Robot Schematics ------------------ None Fabricated ------------ Nothing Repaired ---------- Nothing Alien Tech Used ----------------- None Achievements -------------- None Challenges ------------ None Game ------ Seed MultinovaFortressComputer Manual? 0 Play Time 00:20:59 Cumulative 225.4 hours Start 2025.06.20 @ 02:33:01 End 2025.06.20 @ 03:03:58 Sessions 3 Manual Loads 0 Difficulty Rogue Special Mode None Game No. 214 Rogue 214 Adventurer 0 Explorer 0 Win Type - Total 1 Types 1/0/0/0/0/0/0/0/0/0 Lore% 55 Gallery% 59 Achievement% 47 Wizard Run 0 Options --------- Layout 2 ASCII 1 Keyboard 1 Movement Numpad Keybinds 0 Fullscreen 2 Font 32/TamsynBold Map View 50x44 Zoom Use 0% Tactical HUD 1 Map Filters NONE Filters NONE Steam 1 RUN: ae3452db-3b07-4c5f-8629-7f1933316ae3